fUST/lending_fUST_20251103
["ID","MTS","AMOUNT","RATE_DAILY","PERIOD"]
[392944044,1762162243818,-2985.89233845,0.00037297,3]
[392944046,1762162243926,-1416.60701806,0.00037297,3]
[392944050,1762162246817,-563.791214,0.00037285,2]
[392944051,1762162246872,-63.208786,0.00037285,2]
[392944052,1762162246881,-50859.48768089,0.00037297,3]
[392944053,1762162250263,209.32935652,0.00018356,2]
[392944054,1762162251934,300.0,0.000183,2]
[392944055,1762162259057,150.0,0.00032877,120]
[392944056,1762162262801,300.0,0.000183,2]
[392944059,1762162290492,165.79734977,0.000183,2]
[392944060,1762162297391,500.0,0.00018356,2]
[392944061,1762162297502,317.65734938,0.00018356,2]
[392944063,1762162317822,500.0,0.00018356,2]
[392944064,1762162317850,500.0,0.00018356,2]
[392944065,1762162317878,500.0,0.00018356,2]
[392944066,1762162317906,500.0,0.00018356,2]
[392944067,1762162317938,500.0,0.00018356,2]
[392944068,1762162317965,500.0,0.00018356,2]
[392944069,1762162317991,500.0,0.00018356,2]
[392944070,1762162318021,500.0,0.00018356,2]
[392944071,1762162318047,500.0,0.00018356,2]
[392944072,1762162318075,500.0,0.00018356,2]
[392944073,1762162318102,650.0,0.00018356,2]
[392944074,1762162318128,482.23358725,0.00018356,2]
[392944075,1762162318150,167.76641275,0.00018356,2]
[392944076,1762162318177,500.0,0.00018356,2]
[392944077,1762162318209,500.0,0.00018356,2]
[392944078,1762162318236,466.90730804,0.00018356,2]
[392944079,1762162318263,500.0,0.00018356,2]
[392944080,1762162318290,500.0,0.00018356,2]
[392944081,1762162330486,500.0,0.00018356,2]
[392944082,1762162330516,500.0,0.00018356,2]
[392944083,1762162330545,500.0,0.00018356,2]
[392944084,1762162330781,500.0,0.00018356,2]
[392944085,1762162330810,500.0,0.00018356,2]
[392944086,1762162330838,500.0,0.00018356,2]
[392944087,1762162331112,500.0,0.00018356,2]
[392944088,1762162331142,500.0,0.00018356,2]
[392944089,1762162331222,500.0,0.00018356,2]
[392944090,1762162331414,500.0,0.00018356,2]
[392944091,1762162331496,500.0,0.00018356,2]
[392944092,1762162331721,500.0,0.00018356,2]
[392944093,1762162331757,500.0,0.00018356,2]
[392944094,1762162331787,500.0,0.00018356,2]
[392944095,1762162332029,365.33627921,0.00018356,2]
[392944096,1762162332052,134.66372079,0.00018356,2]
[392944097,1762162332079,500.0,0.00018356,2]
[392944098,1762162332108,500.0,0.00018356,2]
[392944099,1762162332364,500.0,0.00018356,2]
[392944100,1762162332395,500.0,0.00018356,2]
[392944101,1762162332422,500.0,0.00018356,2]
[392944102,1762162332684,209.32935652,0.00018356,2]
[392944103,1762162332715,500.0,0.00018356,2]
[392944104,1762162332754,500.0,0.00018356,2]
[392944105,1762162332802,500.0,0.00018356,2]
[392944106,1762162332859,500.0,0.00018356,2]
[392944107,1762162332906,500.0,0.00018356,2]
[392944108,1762162332967,500.0,0.00018356,2]
[392944109,1762162333020,500.0,0.00018356,2]
[392944110,1762162333093,566.90730804,0.00018356,2]
[392944111,1762162339616,500.0,0.00018356,2]
[392944112,1762162339646,500.0,0.00018356,2]
[392944115,1762162348863,500.0,0.00018356,2]
[392944116,1762162348893,500.0,0.00018356,2]
[392944117,1762162348920,500.0,0.00018356,2]
[392944118,1762162348946,500.0,0.00018356,2]
[392944119,1762162348972,500.0,0.00018356,2]
[392944120,1762162348997,500.0,0.00018356,2]
[392944121,1762162349048,500.0,0.00018356,2]
[392944122,1762162349073,500.0,0.00018356,2]
[392944123,1762162349102,233.09269197,0.00018356,2]
[392944124,1762162349137,500.0,0.00018356,2]
[392944134,1762162534074,-500.0,0.00018358,2]
[392944136,1762162622115,500.0,0.00018358,2]
[392944139,1762162711593,177.0,9e-07,2]
[392944148,1762162843632,1115.91,0.0001839,2]
[392944180,1762163130039,-500.0,0.00037535,60]
[392944181,1762163130116,-500.0,0.00037535,60]
[392944182,1762163130286,-205.57221342,0.00037535,120]
[392944183,1762163130394,-273.0,0.00037535,120]
[392944184,1762163130469,-157.1110261,0.00037535,120]
[392945047,1762163250265,-7000.0,0.00037535,30]
[392945048,1762163250296,-9000.0,0.00037535,20]
[392945049,1762163250326,-110189.78865771,0.00037535,45]
[392945513,1762163438539,-160.0,0.00021914,2]
[392945514,1762163438550,-164.4189517,0.00028785,2]
[392945515,1762163438560,-1632.16945458,0.00031307,2]
[392945516,1762163438570,-269.5720975,0.00031307,2]
[392945517,1762163438579,-153.01331481,0.00031402,2]
[392945519,1762163438588,-335.89161444,0.00031402,2]
[392945520,1762163438597,-500.0,0.00031402,2]
[392945521,1762163438607,-500.0,0.00031402,2]
[392945522,1762163438616,-500.0,0.00031402,2]
[392945523,1762163438625,-500.0,0.00031402,2]
[392945524,1762163438635,-500.0,0.00031402,2]
[392945525,1762163438644,-500.0,0.00031402,2]
[392945526,1762163438654,-500.0,0.00031402,2]
[392945527,1762163438664,-500.0,0.00031402,2]
[392945528,1762163438673,-500.0,0.00031402,2]
[392945529,1762163438682,-500.0,0.00031402,2]
[392945530,1762163438694,-474.100812,0.00031402,2]
[392945531,1762163438704,-500.0,0.00031402,2]
[392945532,1762163438713,-500.0,0.00031402,2]
[392945533,1762163438723,-500.0,0.00031402,2]
[392945534,1762163438733,-500.0,0.00031402,2]
[392945535,1762163438743,-500.0,0.00031402,2]
[392945536,1762163438752,-500.0,0.00031402,2]
[392945537,1762163438761,-500.0,0.00031402,2]
[392945538,1762163438772,-500.0,0.00031402,2]
[392945539,1762163438781,-500.0,0.00031402,2]
[392945540,1762163438791,-500.0,0.00031402,2]
[392945541,1762163438801,-500.0,0.00031402,2]
[392945542,1762163438811,-500.0,0.00031402,2]
[392945543,1762163438821,-500.0,0.00031402,2]
[392945544,1762163438831,-500.0,0.00031402,2]
[392945545,1762163438840,-468.00897259,0.00031402,2]
[392945546,1762163438850,-500.0,0.00031402,2]
[392945547,1762163438860,-500.0,0.00031402,2]
[392945548,1762163438870,-500.0,0.00031402,2]
[392945549,1762163438880,-500.0,0.00031402,2]
[392945550,1762163438889,-629.738338,0.00031402,2]
[392945551,1762163438899,-500.0,0.00031402,2]
[392945552,1762163438909,-500.0,0.00031402,2]
[392945553,1762163438920,-500.0,0.00031402,2]
[392945554,1762163438930,-500.0,0.00031402,2]
[392945555,1762163438941,-500.0,0.00031402,2]
[392945556,1762163438950,-500.0,0.00031402,2]
[392945557,1762163438962,-500.0,0.00031402,2]
[392945558,1762163438972,-500.0,0.00031402,2]
[392945559,1762163438983,-500.0,0.00031402,2]
[392945560,1762163438995,-500.0,0.00031402,2]
[392945561,1762163439005,-500.0,0.00031402,2]
[392945562,1762163439014,-300.0,0.00031402,2]
[392945563,1762163439023,-293.06109913,0.00031402,2]
[392945564,1762163439032,-763.0,0.00031403,3]
[392945565,1762163439041,-25055.2074036,0.00031403,2]
[392945569,1762163440725,-1957.4832513,0.00031403,2]
[392945570,1762163440749,-22987.3093451,0.00031403,2]
[392945571,1762163440759,-500.0,0.00031407,2]
[392945572,1762163440768,-500.0,0.00031509,2]
[392945573,1762163440778,-500.0,0.00031509,2]
[392945574,1762163440787,-500.0,0.0003151,2]
[392945575,1762163440796,-9341.530968,0.0003151,2]
[392945576,1762163440805,-520.42836628,0.00031515,5]
[392945577,1762163440815,-514.46048226,0.00031515,5]
[392945578,1762163440824,-500.0,0.00031515,5]
[392945579,1762163440833,-3611.34949019,0.000323,2]
[392945580,1762163440842,-504.39231402,0.00032458,60]
[392945581,1762163440852,-1227.7560178,0.00033573,2]
[392945582,1762163440861,-269.57209749,0.00033804,2]
[392945583,1762163440870,-206.00281555,0.000354,2]
[392945584,1762163440879,-15690.2287117,0.0003548,3]
[392945585,1762163440888,-500.0,0.00035489,2]
[392945586,1762163440897,-9000.0,0.000355,30]
[392945587,1762163440906,-4567.69149252,0.0003598,3]
[392945588,1762163440921,-7930.32981941,0.0003598,3]
[392945589,1762163440932,-3192.20739977,0.0003598,3]
[392945590,1762163440942,-1312.10451109,0.000361,15]
[392945591,1762163440955,-4.99548891,0.000361,15]
[392945592,1762163440964,-269.57209749,0.000363,2]
[392945593,1762163440973,-32045.74254872,0.0003639,3]
[392945594,1762163440996,-73122.90032196,0.0003639,3]
[392945622,1762163443920,-501.5679133,0.0003639,3]
[392945886,1762163594164,500.0,0.00037536,60]
[392945900,1762163612158,10000.0,0.00032877,120]
[392945954,1762163711359,151.0,0.00037536,120]
[392945956,1762163711953,156.587,0.00037536,120]
[392945957,1762163712624,162.380719,0.00037536,120]
[392945958,1762163713287,168.3888056,0.00037536,120]
[392945960,1762163713896,174.61919141,0.00037536,120]
[392945961,1762163714523,181.08010149,0.00037536,120]
[392945962,1762163715207,187.78006525,0.00037536,120]
[392945963,1762163716031,194.72792766,0.00037536,120]
[392945964,1762163716695,201.93286099,0.00037536,120]
[392945965,1762163717330,209.40437684,0.00037536,120]
[392945967,1762163717996,217.15233878,0.00037536,120]
[392945968,1762163718624,225.18697532,0.00037536,120]
[392945969,1762163719285,233.51889341,0.00037536,120]
[392945971,1762163720013,242.15909246,0.00037536,120]
[392945972,1762163720640,251.11897888,0.00037536,120]
[392945973,1762163721252,260.4103811,0.00037536,120]
[392945974,1762163721912,270.0455652,0.00037536,120]
[392945976,1762163722469,280.03725112,0.00037536,120]
[392945977,1762163723141,290.39862941,0.00037536,120]
[392945979,1762163723887,290.39862941,0.00037536,120]
[392945991,1762163748769,861.9120283,0.00037536,120]
[392946121,1762164012661,151.0,0.00037546,120]
[392946122,1762164013321,156.587,0.00037546,120]
[392946123,1762164013957,162.380719,0.00037546,120]
[392946125,1762164014657,168.3888056,0.00037546,120]
[392946126,1762164015327,174.61919141,0.00037546,120]
[392946127,1762164016102,181.08010149,0.00037546,120]
[392946128,1762164016868,187.78006525,0.00037546,120]
[392946130,1762164017518,194.72792766,0.00037546,120]
[392946132,1762164018203,201.93286099,0.00037546,120]
[392946134,1762164018857,209.40437684,0.00037546,120]
[392946136,1762164019502,217.15233878,0.00037546,120]
[392946137,1762164020168,225.18697532,0.00037546,120]
[392946138,1762164020815,233.51889341,0.00037546,120]
[392946139,1762164021427,242.15909246,0.00037546,120]
[392946141,1762164022149,251.11897888,0.00037546,120]
[392946143,1762164022788,260.4103811,0.00037546,120]
[392946145,1762164023476,270.0455652,0.00037546,120]
[392946147,1762164024107,280.03725112,0.00037546,120]
[392946148,1762164024964,290.39862941,0.00037546,120]
[392946150,1762164025642,290.39862941,0.00037546,120]
[392946286,1762164314578,151.0,0.00037546,120]
[392946288,1762164315206,156.587,0.00037546,120]
[392946292,1762164315842,162.380719,0.00037546,120]
[392946293,1762164316468,168.3888056,0.00037546,120]
[392946294,1762164317138,174.61919141,0.00037546,120]
[392946295,1762164317748,181.08010149,0.00037546,120]
[392946297,1762164318386,187.78006525,0.00037546,120]
[392946298,1762164319020,194.72792766,0.00037546,120]
[392946300,1762164319750,201.93286099,0.00037546,120]
[392946301,1762164320262,209.40437684,0.00037546,120]
[392946302,1762164320886,217.15233878,0.00037546,120]
[392946303,1762164321503,217.15233878,0.00037546,120]
[392946479,1762164631814,-505.8180506,0.00028244,2]
[392946481,1762164631824,-134.21446284,0.0002913,2]
[392946483,1762164631835,-912.404044,0.0002913,2]
[392946488,1762164631872,-754.59706978,0.0002913,2]
[392946490,1762164631881,-920.90069512,0.00029148,2]
[392946492,1762164631891,-1200.0,0.00029228,2]
[392946494,1762164631900,-300.0,0.00029229,2]
[392946496,1762164631910,-300.0,0.00029229,2]
[392946498,1762164631919,-300.0,0.00029229,2]
[392946500,1762164631929,-300.0,0.00029229,2]
[392946502,1762164631939,-500.0,0.0002923,2]
[392946503,1762164631948,-500.0,0.0002923,2]
[392946505,1762164631957,-500.0,0.0002923,2]
[392946506,1762164631966,-534.51327698,0.0002923,2]
[392946507,1762164631975,-500.0,0.0002923,2]
[392946509,1762164631984,-500.0,0.0002923,2]
[392946510,1762164631994,-500.0,0.0002923,2]
[392946511,1762164632003,-500.0,0.0002923,2]
[392946512,1762164632012,-500.0,0.0002923,2]
[392946513,1762164632022,-500.0,0.0002923,2]
[392946514,1762164632032,-500.0,0.0002923,2]
[392946515,1762164632042,-500.0,0.0002923,2]
[392946516,1762164632051,-500.0,0.0002923,2]
[392946517,1762164632060,-500.0,0.0002923,2]
[392946518,1762164632069,-500.0,0.0002923,2]
[392946519,1762164632078,-500.0,0.0002923,2]
[392946520,1762164632088,-500.0,0.0002923,2]
[392946521,1762164632098,-500.0,0.0002923,2]
[392946522,1762164632107,-500.0,0.0002923,2]
[392946523,1762164632116,-500.0,0.0002923,2]
[392946524,1762164632125,-500.0,0.0002923,2]
[392946525,1762164632135,-500.0,0.0002923,2]
[392946526,1762164632144,-500.0,0.0002923,2]
[392946527,1762164632153,-436.77371444,0.0002923,2]
[392946528,1762164632163,-500.0,0.0002923,2]
[392946529,1762164632172,-489.94361601,0.0002923,2]
[392946530,1762164632181,-500.0,0.0002923,2]
[392946531,1762164632190,-500.0,0.0002923,2]
[392946532,1762164632199,-500.0,0.0002923,2]
[392946533,1762164632209,-528.71661291,0.0002923,2]
[392946534,1762164632218,-500.0,0.0002923,2]
[392946535,1762164632227,-500.0,0.0002923,2]
[392946536,1762164632237,-500.0,0.0002923,2]
[392946537,1762164632247,-500.0,0.0002923,2]
[392946538,1762164632257,-500.0,0.0002923,2]
[392946539,1762164632267,-385.80006489,0.0002923,2]
[392946540,1762164632277,-500.0,0.0002923,2]
[392946541,1762164632288,-500.0,0.0002923,2]
[392946542,1762164632301,-500.0,0.0002923,2]
[392946543,1762164632311,-500.0,0.0002923,2]
[392946544,1762164632320,-500.0,0.0002923,2]
[392946545,1762164632330,-500.0,0.0002923,2]
[392946546,1762164632340,-500.0,0.0002923,2]
[392946547,1762164632350,-500.0,0.0002923,2]
[392946548,1762164632359,-500.0,0.0002923,2]
[392946549,1762164632370,-500.0,0.0002923,2]
[392946550,1762164632380,-500.0,0.0002923,2]
[392946551,1762164632389,-500.0,0.0002923,2]
[392946552,1762164632398,-500.0,0.0002923,2]
[392946553,1762164632408,-500.0,0.0002923,2]
[392946554,1762164632417,-500.0,0.0002923,2]
[392946555,1762164632426,-615.51941078,0.0002923,2]
[392946556,1762164632435,-500.0,0.0002923,2]
[392946557,1762164632444,-500.0,0.0002923,2]
[392946558,1762164632454,-500.0,0.0002923,2]
[392946559,1762164632463,-500.0,0.0002923,2]
[392946560,1762164632471,-500.0,0.0002923,2]
[392946561,1762164632480,-500.0,0.0002923,2]
[392946562,1762164632489,-500.0,0.0002923,2]
[392946563,1762164632498,-500.0,0.0002923,2]
[392946564,1762164632507,-500.0,0.0002923,2]
[392946565,1762164632516,-500.0,0.0002923,2]
[392946566,1762164632525,-500.0,0.0002923,2]
[392946567,1762164632534,-500.0,0.0002923,2]
[392946568,1762164632545,-500.0,0.0002923,2]
[392946569,1762164632554,-500.0,0.0002923,2]
[392946570,1762164632563,-500.0,0.0002923,2]
[392946571,1762164632573,-500.0,0.0002923,2]
[392946572,1762164632582,-500.0,0.0002923,2]
[392946573,1762164632591,-500.0,0.0002923,2]
[392946574,1762164632600,-500.0,0.0002923,2]
[392946575,1762164632611,-500.0,0.0002923,2]
[392946576,1762164632620,-500.0,0.0002923,2]
[392946577,1762164632629,-500.0,0.0002923,2]
[392946578,1762164632638,-500.0,0.0002923,2]
[392946579,1762164632647,-500.0,0.0002923,2]
[392946580,1762164632657,-500.0,0.0002923,2]
[392946581,1762164632667,-315.35627574,0.0002923,2]
[392946582,1762164632676,-500.0,0.0002923,2]
[392946583,1762164632685,-500.0,0.0002923,2]
[392946584,1762164632694,-500.0,0.0002923,2]
[392946585,1762164632703,-500.0,0.0002923,2]
[392946586,1762164632712,-500.0,0.0002923,2]
[392946587,1762164632722,-500.0,0.0002923,2]
[392946588,1762164632731,-500.0,0.0002923,2]
[392946589,1762164632740,-500.0,0.0002923,2]
[392946590,1762164632751,-500.0,0.0002923,2]
[392946591,1762164632759,-500.0,0.0002923,2]
[392946592,1762164632768,-500.0,0.0002923,2]
[392946593,1762164632778,-500.0,0.0002923,2]
[392946594,1762164632788,-500.0,0.0002923,2]
[392946595,1762164632796,-500.0,0.0002923,2]
[392946596,1762164632806,-500.0,0.0002923,2]
[392946597,1762164632814,-500.0,0.0002923,2]
[392946598,1762164632823,-500.0,0.0002923,2]
[392946599,1762164632832,-500.0,0.0002923,2]
[392946600,1762164632841,-500.0,0.0002923,2]
[392946601,1762164632851,-500.0,0.0002923,2]
[392946602,1762164632859,-500.0,0.0002923,2]
[392946603,1762164632869,-500.0,0.0002923,2]
[392946604,1762164632877,-500.0,0.0002923,2]
[392946605,1762164632886,-500.0,0.0002923,2]
[392946606,1762164632895,-500.0,0.0002923,2]
[392946607,1762164632904,-500.0,0.0002923,2]
[392946608,1762164632913,-500.0,0.0002923,2]
[392946609,1762164632922,-650.0,0.0002923,2]
[392946610,1762164632932,-846.73,0.00029231,10]
[392946611,1762164632941,-22567.9283633,0.00029231,2]
[392946612,1762164632950,-4487.72010369,0.00029231,2]
[392946613,1762164632959,-1200.0,0.0002924,2]
[392946614,1762164632967,-500.0,0.00029241,2]
[392946615,1762164632976,-50000.0,0.00029241,2]
[392946616,1762164632986,-151.0,0.00029243,2]
[392946617,1762164632995,-151.0,0.00029243,2]
[392946618,1762164633004,-153.59902826,0.00029243,2]
[392946619,1762164633014,-311.38,0.00029248,3]
[392946620,1762164633023,-155.69,0.00029248,3]
[392946621,1762164633032,-467.08,0.00029248,3]
[392946622,1762164633041,-737.68,0.00029248,3]
[392946623,1762164633050,-500.0,0.00029253,2]
[392946624,1762164633059,-500.0,0.00029253,2]
[392946625,1762164633068,-500.0,0.00029253,2]
[392946626,1762164633078,-151.0,0.00029253,2]
[392946627,1762164633087,-500.0,0.00029253,2]
[392946628,1762164633097,-701.0,0.00029254,2]
[392946629,1762164633106,-151.0,0.00029254,2]
[392946630,1762164633115,-151.0,0.00029254,2]
[392946631,1762164633124,-500.0,0.00029254,2]
[392946632,1762164633133,-500.0,0.00029254,2]
[392946633,1762164633142,-151.0,0.00029255,2]
[392946634,1762164633151,-24283.2874659,0.00029258,2]
[392946635,1762164633160,-620.67130562,0.00029273,5]
[392946636,1762164633169,-500.0,0.00029273,5]
[392946637,1762164633179,-502.11792722,0.00029273,5]
[392946638,1762164633188,-471.2770702,0.00029273,5]
[392946639,1762164633197,-500.0,0.00029273,2]
[392946640,1762164633206,-519.49208786,0.00029273,5]
[392946641,1762164633216,-502.81085202,0.00029273,5]
[392946642,1762164633225,-500.0,0.00029273,5]
[392946643,1762164633234,-151.0,0.00029298,2]
[392946644,1762164633243,-743.78,0.000293,7]
[392946645,1762164633252,-500.0,0.00029308,2]
[392946646,1762164633261,-500.0,0.00029308,2]
[392946647,1762164633271,-500.0,0.00029308,2]
[392946648,1762164633280,-151.0,0.00029308,2]
[392946649,1762164633291,-500.0,0.00029308,2]
[392946650,1762164633304,-151.0,0.00029309,2]
[392946651,1762164633314,-151.0,0.00029309,2]
[392946652,1762164633323,-542.04631885,0.00029309,2]
[392946653,1762164633333,-588.70110518,0.00029309,2]
[392946654,1762164633347,-151.0,0.0002931,2]
[392946655,1762164633357,-237.58,0.00029319,2]
[392946656,1762164633368,-196.09966933,0.00029333,2]
[392946657,1762164633380,-196.09966933,0.00029333,2]
[392946658,1762164633389,-151.0,0.00029353,2]
[392946659,1762164633398,-22567.9283633,0.00029355,2]
[392946660,1762164633407,-4487.72010369,0.00029355,2]
[392946661,1762164633417,-500.0,0.00029363,2]
[392946662,1762164633426,-500.0,0.00029363,2]
[392946663,1762164633435,-500.0,0.00029363,2]
[392946664,1762164633444,-151.0,0.00029363,2]
[392946665,1762164633454,-500.0,0.00029363,2]
[392946666,1762164633463,-287.29532488,0.00029364,2]
[392946667,1762164633472,-151.0,0.00029364,2]
[392946668,1762164633482,-203.52074143,0.00029365,2]
[392946669,1762164633492,-209.6050346,0.00029407,2]
[392946670,1762164633502,-500.0,0.00029417,2]
[392946671,1762164633511,-500.0,0.00029417,2]
[392946672,1762164633520,-500.0,0.00029417,2]
[392946673,1762164633529,-193.67798862,0.00029417,2]
[392946674,1762164633539,-162.65384804,0.00029417,2]
[392946675,1762164633549,-151.0,0.00029418,2]
[392946676,1762164633558,-500.0,0.00029472,2]
[392946677,1762164633567,-500.0,0.00029472,2]
[392946678,1762164633576,-500.0,0.00029472,2]
[392946679,1762164633585,-235.37144656,0.00029473,2]
[392946680,1762164633595,-500.0,0.00029515,2]
[392946681,1762164633603,-500.0,0.00029527,2]
[392946682,1762164633612,-207.39504461,0.00029527,2]
[392946683,1762164633622,-500.0,0.00029527,2]
[392946684,1762164633631,-500.0,0.00029582,2]
[392946685,1762164633640,-500.0,0.00029582,2]
[392946686,1762164633649,-500.0,0.00029637,2]
[392946687,1762164633658,-500.0,0.00029637,2]
[392946688,1762164633667,-500.0,0.00029691,2]
[392946689,1762164633677,-584.0,0.00029691,2]
[392946690,1762164633686,-500.0,0.00029746,2]
[392946691,1762164633695,-500.0,0.00029789,2]
[392946692,1762164633704,-500.0,0.00029801,2]
[392946693,1762164633714,-300.0,0.00029825,30]
[392946694,1762164633723,-300.0,0.00029825,30]
[392946695,1762164633732,-500.0,0.00029856,2]
[392946696,1762164633741,-380.0,0.00029891,2]
[392946697,1762164633750,-500.0,0.00029911,2]
[392946698,1762164633759,-295.6553274,0.00029965,2]
[392946699,1762164633768,-500.0,0.00030011,5]
[392946700,1762164633777,-512.72134421,0.00030011,5]
[392946701,1762164633790,-500.0,0.00030063,2]
[392946702,1762164633800,-160.0,0.00030089,2]
[392946703,1762164633809,-500.0,0.00030337,2]
[392946704,1762164633818,-622.76,0.00030618,3]
[392946705,1762164633827,-311.38,0.00030618,3]
[392946706,1762164633837,-260.0,0.00030637,2]
[392946707,1762164633847,-360.0,0.00031185,2]
[392946708,1762164633954,-920.90069508,0.00031348,2]
[392946709,1762164633967,-500.0,0.00031402,2]
[392946710,1762164633976,-500.0,0.00031402,2]
[392946711,1762164633986,-500.0,0.00031402,2]
[392946712,1762164633995,-501.29828015,0.000315,5]
[392946713,1762164634004,-420.0,0.00031528,2]
[392946714,1762164634013,-244.0,0.00031528,3]
[392946715,1762164634023,-1680.0,0.00031539,3]
[392946716,1762164634032,-460.0,0.00031733,2]
[392946717,1762164634043,-4550.76,0.000318,7]
[392946718,1762164634052,-169.07,0.000318,14]
[392946719,1762164634061,-560.0,0.00032281,2]
[392946720,1762164634071,-660.0,0.00032829,2]
[392946721,1762164634080,-527.0,0.00032877,2]
[392946722,1762164634090,-527.0,0.00032932,2]
[392946723,1762164634098,-527.0,0.00032987,2]
[392946724,1762164634107,-527.0,0.00033041,2]
[392946725,1762164634117,-527.0,0.00033096,2]
[392946726,1762164634126,-527.0,0.00033151,2]
[392946727,1762164634135,-527.0,0.00033206,2]
[392946728,1762164634144,-527.0,0.00033261,2]
[392946729,1762164634153,-527.0,0.00033315,2]
[392946730,1762164634163,-527.0,0.0003337,2]
[392946731,1762164634172,-743.78,0.000334,7]
[392946732,1762164634181,-527.0,0.00033425,2]
[392946733,1762164634191,-527.0,0.0003348,2]
[392946734,1762164634199,-527.0,0.00033535,2]
[392946735,1762164634208,-527.0,0.00033589,2]
[392946736,1762164634217,-527.0,0.00033644,2]
[392946737,1762164634226,-527.0,0.00033699,2]
[392946738,1762164634235,-527.0,0.00033754,2]
[392946739,1762164634245,-527.0,0.00033809,2]
[392946740,1762164634254,-527.0,0.00033863,2]
[392946741,1762164634264,-527.0,0.00033918,2]
[392946742,1762164634273,-527.0,0.00033973,2]
[392946743,1762164634282,-587.0,0.00034007,2]
[392946744,1762164634292,-1120.0,0.00034019,3]
[392946745,1762164634304,-527.0,0.00034028,2]
[392946746,1762164634313,-527.0,0.00034082,2]
[392946747,1762164634322,-541.75716028,0.00034137,2]
[392946748,1762164634331,-1255.6053632,0.00034557,2]
[392946749,1762164634342,-8278.8629398,0.00034557,2]
[392946750,1762164634351,-22567.9283633,0.00034578,2]
[392946751,1762164634360,-4487.72010369,0.00034578,2]
[392946752,1762164634370,-196.4084102,0.0003489,4]
[392946753,1762164634380,-1000.0,0.0003548,2]
[392946754,1762164634390,-1000.0,0.0003548,2]
[392946755,1762164634399,-1000.0,0.0003548,2]
[392946756,1762164634408,-1000.0,0.0003548,2]
[392946757,1762164634416,-929.76646835,0.0003548,2]
[392946758,1762164634426,-1000.0,0.00035616,2]
[392946759,1762164634435,-2123.04731068,0.00035785,2]
[392946760,1762164634444,-368.0,0.0003589,120]
[392946761,1762164634453,-368.0,0.00035963,2]
[392946762,1762164634462,-4550.76,0.00036,14]
[392946763,1762164634471,-151.0,0.00036,31]
[392946764,1762164634480,-151.0,0.00036,31]
[392946765,1762164634489,-368.0,0.00036084,2]
[392946766,1762164634499,-2123.04731068,0.00036106,2]
[392946767,1762164634508,-368.0,0.00036257,2]
[392946768,1762164634517,-508.8212336,0.00036373,5]
[392946769,1762164634526,-151.0,0.0003639,31]
[392946770,1762164634536,-300.446592,0.0003639,31]
[392946771,1762164634548,-151.0,0.000364,31]
[392946772,1762164634557,-368.0,0.00036439,120]
[392946773,1762164634567,-7000.0,0.000365,30]
[392946774,1762164634575,-305.63366968,0.000365,2]
[392946775,1762164634584,-368.0,0.000366,2]